fUSD/lending_fUSD_20241220
["ID","MTS","AMOUNT","RATE_DAILY","PERIOD"]
[346045072,1734657045124,-500.0,0.00024999,4]
[346045073,1734657045134,-500.0,0.00024999,4]
[346045074,1734657045143,-500.0,0.00024999,4]
[346045075,1734657045152,-500.0,0.00024999,4]
[346045076,1734657045161,-556.24,0.00024999,4]
[346045077,1734657045171,-549.31,0.00024999,4]
[346045078,1734657045180,-993.06,0.00024999,4]
[346045079,1734657045190,-500.0,0.00024999,4]
[346045080,1734657045199,-993.06,0.00024999,4]
[346045081,1734657045208,-348.68,0.00024999,4]
[346045082,1734657045218,-993.06,0.00024999,4]
[346045083,1734657045227,-993.06,0.00024999,4]
[346045084,1734657045236,-993.06,0.00024999,4]
[346045085,1734657045246,-993.06,0.00024999,4]
[346045086,1734657045255,-993.06,0.00024999,4]
[346045087,1734657045265,-993.06,0.00024999,4]
[346045088,1734657045275,-993.06,0.00024999,4]
[346045089,1734657045284,-993.06,0.00024999,4]
[346045090,1734657045294,-500.0,0.00024999,4]
[346045091,1734657045304,-993.06,0.00024999,4]
[346045092,1734657045313,-355.36,0.00024999,4]
[346045093,1734657045323,-993.06,0.00024999,4]
[346045094,1734657045332,-993.06,0.00024999,4]
[346045095,1734657045342,-993.06,0.00024999,4]
[346045096,1734657045351,-993.06,0.00024999,4]
[346045097,1734657045362,-993.06,0.00024999,4]
[346045098,1734657045371,-993.06,0.00024999,4]
[346045099,1734657045381,-993.06,0.00024999,4]
[346045100,1734657045390,-993.06,0.00024999,4]
[346045101,1734657045399,-993.06,0.00024999,4]
[346045102,1734657045408,-993.06,0.00024999,4]
[346045103,1734657045417,-993.06,0.00024999,4]
[346045105,1734657045427,-993.07,0.00024999,4]
[346045106,1734657045436,-500.0,0.00024999,4]
[346045107,1734657045446,-500.0,0.00024999,4]
[346045108,1734657045455,-500.0,0.00024999,4]
[346045109,1734657045467,-500.0,0.00024999,4]
[346045110,1734657045476,-500.0,0.00024999,4]
[346045111,1734657045485,-500.0,0.00024999,4]
[346045112,1734657045494,-500.0,0.00024999,4]
[346045113,1734657045503,-500.0,0.00024999,4]
[346045114,1734657045512,-500.0,0.00024999,4]
[346045115,1734657045521,-500.0,0.00024999,4]
[346045116,1734657045530,-536.82179373,0.00024999,4]
[346045117,1734657045540,-2845.51,0.00024999,4]
[346045118,1734657045549,-2845.51,0.00024999,4]
[346045119,1734657045558,-2845.51,0.00024999,4]
[346045120,1734657045567,-2845.51,0.00024999,4]
[346045121,1734657045577,-2845.51,0.00024999,4]
[346045122,1734657045591,-2845.51,0.00024999,4]
[346045123,1734657045600,-2845.51,0.00024999,4]
[346045125,1734657045610,-2845.51,0.00024999,4]
[346045126,1734657045619,-2845.51,0.00024999,4]
[346045127,1734657045629,-2845.51,0.00024999,4]
[346045128,1734657045638,-2845.51,0.00024999,4]
[346045129,1734657045647,-2845.51,0.00024999,4]
[346045130,1734657045657,-2845.51,0.00024999,4]
[346045131,1734657045668,-2845.51,0.00024999,4]
[346045132,1734657045677,-2845.51,0.00024999,4]
[346045133,1734657045686,-2845.51,0.00024999,4]
[346045134,1734657045696,-2845.51,0.00024999,4]
[346045135,1734657045705,-2845.51,0.00024999,4]
[346045136,1734657045715,-2845.51,0.00024999,4]
[346045137,1734657045725,-2845.51,0.00024999,4]
[346045138,1734657045734,-2845.51,0.00024999,4]
[346045139,1734657045743,-2845.64195551,0.00024999,4]
[346045140,1734657045753,-500.0,0.00024999,4]
[346045141,1734657045762,-500.0,0.00024999,4]
[346045142,1734657045772,-500.0,0.00024999,4]
[346045143,1734657045781,-500.0,0.00024999,4]
[346045144,1734657045791,-500.0,0.00024999,4]
[346045145,1734657045800,-247.74417442,0.00024999,4]
[346045146,1734657045809,-1020.08,0.00024999,4]
[346045147,1734657045819,-1020.08,0.00024999,4]
[346045148,1734657045828,-1020.08,0.00024999,4]
[346045149,1734657045838,-1020.08,0.00024999,4]
[346045150,1734657045847,-1020.08,0.00024999,4]
[346045151,1734657045857,-1020.08,0.00024999,4]
[346045152,1734657045866,-1020.08,0.00024999,4]
[346045153,1734657045876,-1020.08,0.00024999,4]
[346045154,1734657045885,-1020.08,0.00024999,4]
[346045155,1734657045895,-1020.08,0.00024999,4]
[346045156,1734657045905,-1020.08,0.00024999,4]
[346045157,1734657045915,-1020.08,0.00024999,4]
[346045158,1734657045925,-1020.08,0.00024999,4]
[346045159,1734657045935,-1020.08,0.00024999,4]
[346045160,1734657045944,-1020.08,0.00024999,4]
[346045161,1734657045954,-1020.08,0.00024999,4]
[346045162,1734657045963,-1020.08,0.00024999,4]
[346045163,1734657045973,-1020.08,0.00024999,4]
[346045164,1734657045982,-1020.08,0.00024999,4]
[346045165,1734657045992,-1020.08,0.00024999,4]
[346045166,1734657046002,-1020.08,0.00024999,4]
[346045167,1734657046011,-1020.12822808,0.00024999,4]
[346045168,1734657046021,-500.0,0.00024999,4]
[346045169,1734657046031,-500.0,0.00024999,4]
[346045170,1734657046040,-500.0,0.00024999,4]
[346045171,1734657046049,-500.0,0.00024999,4]
[346045172,1734657046058,-500.0,0.00024999,4]
[346045173,1734657046068,-500.0,0.00024999,4]
[346045174,1734657046077,-500.0,0.00024999,4]
[346045175,1734657046087,-500.0,0.00024999,4]
[346045176,1734657046096,-500.0,0.00024999,4]
[346045177,1734657046106,-500.0,0.00024999,4]
[346045178,1734657046119,-500.0,0.00024999,4]
[346045179,1734657046129,-500.0,0.00024999,4]
[346045180,1734657046138,-500.0,0.00024999,4]
[346045181,1734657046147,-500.0,0.00024999,4]
[346045182,1734657046156,-413.14510886,0.00024999,4]
[346045183,1734657046166,-500.0,0.00024999,4]
[346045185,1734657046175,-500.0,0.00024999,4]
[346045187,1734657046185,-500.0,0.00024999,4]
[346045189,1734657046194,-500.0,0.00024999,4]
[346045191,1734657046204,-500.0,0.00024999,4]
[346045193,1734657046213,-500.0,0.00024999,4]
[346045195,1734657046222,-500.0,0.00024999,4]
[346045197,1734657046232,-500.0,0.00024999,4]
[346045199,1734657046241,-500.0,0.00024999,4]
[346045201,1734657046251,-500.0,0.00024999,4]
[346045203,1734657046260,-2455.47,0.00024999,4]
[346045205,1734657046269,-341.30525494,0.00024999,4]
[346045206,1734657046279,-2455.47,0.00024999,4]
[346045207,1734657046288,-2455.47,0.00024999,4]
[346045208,1734657046298,-2455.47,0.00024999,4]
[346045209,1734657046307,-2455.47,0.00024999,4]
[346045210,1734657046318,-2455.47,0.00024999,4]
[346045211,1734657046328,-2455.47,0.00024999,4]
[346045212,1734657046338,-2455.47,0.00024999,4]
[346045213,1734657046346,-2455.47,0.00024999,4]
[346045214,1734657046356,-2455.47,0.00024999,4]
[346045215,1734657046369,-2455.47,0.00024999,4]
[346045216,1734657046378,-2455.47,0.00024999,4]
[346045217,1734657046388,-2455.47,0.00024999,4]
[346045218,1734657046397,-161.51,0.00024999,4]
[346045219,1734657046407,-2455.47,0.00024999,4]
[346045220,1734657046416,-2455.47,0.00024999,4]
[346045221,1734657046426,-2455.47,0.00024999,4]
[346045222,1734657046435,-2455.47,0.00024999,4]
[346045223,1734657046444,-2455.47,0.00024999,4]
[346045224,1734657046454,-2455.47,0.00024999,4]
[346045225,1734657046463,-2455.47,0.00024999,4]
[346045226,1734657046472,-500.0,0.00024999,4]
[346045227,1734657046482,-2455.47,0.00024999,4]
[346045228,1734657046491,-495.49,0.00024999,4]
[346045229,1734657046500,-2455.6071,0.00024999,4]
[346045230,1734657046510,-500.0,0.00024999,4]
[346045231,1734657046519,-500.0,0.00024999,4]
[346045232,1734657046529,-500.0,0.00024999,4]
[346045233,1734657046538,-236.86168526,0.00024999,4]
[346045234,1734657046547,-500.0,0.00024999,4]
[346045235,1734657046556,-522.36,0.00024999,4]
[346045236,1734657046566,-150.0,0.00024999,2]
[346045237,1734657046575,-150.0,0.00024999,2]
[346045238,1734657046585,-500.0,0.00024999,4]
[346045239,1734657046598,-150.0,0.00024999,2]
[346045240,1734657046610,-487.75212077,0.00024999,4]
[346045241,1734657046619,-150.0,0.00024999,2]
[346045242,1734657046629,-150.0,0.00024999,2]
[346045243,1734657046639,-150.0,0.00024999,2]
[346045244,1734657046649,-565.28,0.00024999,4]
[346045245,1734657046659,-565.28,0.00024999,4]
[346045246,1734657046670,-1525.41753,0.00024999,2]
[346045247,1734657046681,-565.28,0.00024999,4]
[346045248,1734657046690,-150.0,0.00024999,2]
[346045249,1734657046700,-565.28,0.00024999,4]
[346045250,1734657046711,-565.28,0.00024999,4]
[346045251,1734657046720,-565.28,0.00024999,4]
[346045252,1734657046729,-150.0,0.00024999,2]
[346045253,1734657046738,-565.28,0.00024999,4]
[346045254,1734657046747,-565.28,0.00024999,4]
[346045255,1734657046757,-565.28,0.00024999,4]
[346045256,1734657046766,-150.0,0.00024999,2]
[346045257,1734657046775,-565.28,0.00024999,4]
[346045258,1734657046783,-565.28,0.00024999,4]
[346045259,1734657046792,-565.28,0.00024999,4]
[346045260,1734657046801,-150.0,0.00024999,2]
[346045261,1734657046810,-565.28,0.00024999,4]
[346045262,1734657046818,-565.28,0.00024999,4]
[346045263,1734657046827,-565.28,0.00024999,4]
[346045264,1734657046836,-565.28,0.00024999,4]
[346045265,1734657046845,-150.0,0.00024999,2]
[346045266,1734657046854,-565.28,0.00024999,4]
[346045267,1734657046865,-565.28,0.00024999,4]
[346045268,1734657046874,-150.0,0.00024999,2]
[346045269,1734657046883,-565.28,0.00024999,4]
[346045270,1734657046892,-565.28,0.00024999,4]
[346045271,1734657046900,-565.28,0.00024999,4]
[346045272,1734657046909,-150.0,0.00024999,2]
[346045273,1734657046918,-565.29583515,0.00024999,4]
[346045274,1734657046927,-150.0,0.00024999,2]
[346045275,1734657046937,-150.0,0.00024999,2]
[346045276,1734657046946,-2012.7327,0.00024999,2]
[346045277,1734657046955,-632.0,0.00024999,4]
[346045278,1734657046965,-150.0,0.00024999,2]
[346045279,1734657046975,-632.0,0.00024999,4]
[346045280,1734657046984,-500.0,0.00024999,4]
[346045281,1734657046993,-632.0,0.00024999,4]
[346045282,1734657047002,-506.29,0.00024999,4]
[346045283,1734657047011,-632.0,0.00024999,4]
[346045284,1734657047021,-150.0,0.00024999,2]
[346045285,1734657047156,-632.0,0.00024999,4]
[346045286,1734657047170,-632.0,0.00024999,4]
[346045287,1734657047179,-632.0,0.00024999,4]
[346045288,1734657047189,-632.0,0.00024999,4]
[346045289,1734657047198,-150.0,0.00024999,2]
[346045290,1734657047207,-632.0,0.00024999,4]
[346045291,1734657047217,-632.0,0.00024999,4]
[346045292,1734657047226,-150.0,0.00024999,2]
[346045293,1734657047235,-632.0,0.00024999,4]
[346045294,1734657047244,-632.0,0.00024999,4]
[346045295,1734657047254,-632.0,0.00024999,4]
[346045296,1734657047263,-632.0,0.00024999,4]
[346045297,1734657047273,-150.0,0.00024999,2]
[346045298,1734657047282,-632.0,0.00024999,4]
[346045299,1734657047292,-632.0,0.00024999,4]
[346045300,1734657047301,-632.0,0.00024999,4]
[346045301,1734657047311,-150.0,0.00024999,2]
[346045302,1734657047320,-632.0,0.00024999,4]
[346045303,1734657047329,-632.0,0.00024999,4]
[346045304,1734657047339,-632.0,0.00024999,4]
[346045305,1734657047347,-150.0,0.00024999,2]
[346045306,1734657047357,-632.0,0.00024999,4]
[346045307,1734657047370,-632.16,0.00024999,4]
[346045308,1734657047378,-174.78517118,0.00024999,2]
[346045309,1734657047388,-500.0,0.00024999,4]
[346045310,1734657047397,-500.0,0.00024999,4]
[346045311,1734657047406,-500.0,0.00024999,4]
[346045312,1734657047415,-500.0,0.00024999,4]
[346045313,1734657047425,-500.0,0.00024999,4]
[346045314,1734657047434,-500.0,0.00024999,4]
[346045315,1734657047444,-500.0,0.00024999,4]
[346045316,1734657047453,-500.0,0.00024999,4]
[346045317,1734657047463,-500.0,0.00024999,4]
[346045318,1734657047471,-500.0,0.00024999,4]
[346045319,1734657047482,-500.0,0.00024999,4]
[346045320,1734657047491,-500.0,0.00024999,4]
[346045321,1734657047500,-500.0,0.00024999,4]
[346045322,1734657047509,-500.0,0.00024999,4]
[346045323,1734657047519,-500.0,0.00024999,4]
[346045324,1734657047529,-500.0,0.00024999,4]
[346045325,1734657047538,-500.0,0.00024999,4]
[346045326,1734657047548,-500.0,0.00024999,4]
[346045327,1734657047557,-500.0,0.00024999,4]
[346045328,1734657047567,-500.0,0.00024999,4]
[346045329,1734657047577,-500.0,0.00024999,4]
[346045330,1734657047587,-500.0,0.00024999,4]
[346045331,1734657047598,-500.0,0.00024999,4]
[346045332,1734657047607,-500.0,0.00024999,4]
[346045333,1734657047619,-500.0,0.00024999,4]
[346045334,1734657047628,-500.0,0.00024999,4]
[346045335,1734657047639,-500.0,0.00024999,4]
[346045336,1734657047648,-884.0,0.00025,2]
[346045337,1734657047657,-3393.86543412,0.00025,2]
[346045338,1734657047667,-296666.16986675,0.00025,3]
[346045339,1734657047676,-259.73159323,0.00025,3]
[346045340,1734657047686,-9163245.55100663,0.00025,2]
[346045341,1734657047817,-4677.82886025,0.00025,2]
[346045342,1734657047828,-511.90603702,0.00025,2]
[346045343,1734657047839,-449.75000287,0.00025,2]
[346045344,1734657047851,-5352.25530607,0.00025,2]
[346045345,1734657047864,-443.47916358,0.00025,2]
[346045346,1734657047921,-500.0,0.00024999,4]
[346045347,1734657047931,-500.0,0.00024999,4]
[346045348,1734657047940,-500.0,0.00024999,4]
[346045349,1734657047949,-591.07583172,0.00024999,4]
[346045350,1734657047959,-500.0,0.00024999,4]
[346045351,1734657047968,-500.0,0.00024999,4]
[346045352,1734657047977,-500.0,0.00024999,4]
[346045353,1734657047987,-500.0,0.00024999,4]
[346045354,1734657047996,-500.0,0.00024999,4]
[346045355,1734657048006,-21385.0660734,0.00025,2]
[346045356,1734657048017,-607.46602351,0.00025,2]
[346045357,1734657048028,-3795.15533901,0.00025,2]
[346045358,1734657048040,-4927.23480549,0.00025,2]
[346045359,1734657048056,-500.0,0.00024999,4]
[346045360,1734657048065,-1899.86991087,0.00025,2]
[346045361,1734657048077,-438.03646939,0.00025,2]
[346045362,1734657048139,-245.58190198,0.00024999,4]
[346045363,1734657048157,-174.66809802,0.00024999,4]
[346045364,1734657048166,-110.9754737,0.00025,2]
[346045365,1734657048177,-877355.99999981,0.00025,2]
[346045366,1734657048192,-4191.57193865,0.00025,2]
[346045367,1734657048217,-48131.98550678,0.00025,2]
[346045368,1734657048244,-194577.51820786,0.00025,2]
[346045369,1734657048256,-1108.25808611,0.00025,2]
[346045370,1734657048268,-17831.67858389,0.00025,2]
[346045371,1734657048279,-5849.249544,0.00025,2]
[346045374,1734657834225,157.6,0.00010137,2]
[346045383,1734658169146,-303.12696657,0.00019459,2]
[346045384,1734658169168,-658.82497436,0.00020483,2]
[346045392,1734658232098,-397.17502564,0.00020483,2]
[346045393,1734658232108,-1056.0,0.00021561,2]
[346045394,1734658232117,-400.27,0.00021856,2]
[346045395,1734658232127,-1809.0,0.000219,2]
[346045396,1734658232136,-218.0,0.00022,2]
[346045397,1734658232147,-1056.0,0.00022639,2]
[346045398,1734658232158,-218.0,0.00023014,2]
[346045399,1734658232167,-250.0,0.0002326,2]
[346045400,1734658232178,-987.45,0.00023267,2]
[346045401,1734658232188,-530.74,0.00023291,2]
[346045402,1734658232197,-250.0,0.0002335,2]
[346045403,1734658232206,-181.4,0.00023365,2]
[346045404,1734658232215,-649.43,0.00023392,2]
[346045405,1734658232225,-1000.0,0.00023397,2]
[346045406,1734658232234,-153.86425465,0.00023507,2]
[346045407,1734658232243,-166.201,0.00023507,4]
[346045408,1734658232252,-155.95,0.00023545,30]
[346045409,1734658232261,-200.0,0.00023698,10]
[346045410,1734658232271,-1002.9905805,0.00023699,2]
[346045411,1734658232280,-13670.14754284,0.00023701,2]
[346045412,1734658232292,-17085.05245716,0.00023701,2]
[346045413,1734658232302,-153.86425465,0.00023726,2]
[346045414,1734658232311,-423.286,0.0002375,2]
[346045415,1734658232321,-1056.0,0.00023771,2]
[346045416,1734658232330,-23900.0,0.0002382,2]
[346045417,1734658232339,-5538.71,0.00023845,2]
[346045418,1734658232349,-162.64,0.00023897,2]
[346045419,1734658232358,-153.86425465,0.00023918,2]
[346045420,1734658232367,-1023.94,0.00023969,2]
[346045421,1734658232376,-3162.49626429,0.00024,7]
[346045422,1734658232385,-10000.0,0.00024,2]
[346045423,1734658232394,-167.09,0.00024074,2]
[346045424,1734658232404,-400.27,0.0002412,2]
[346045425,1734658232413,-153.86425465,0.00024137,2]
[346045426,1734658232422,-153.86425465,0.00024356,2]
[346045427,1734658232433,-178.2770547,0.000245,2]
[346045428,1734658232442,-153.86425465,0.00024548,2]
[346045429,1734658232452,-150.0,0.00024658,2]
[346045430,1734658232461,-697.534,0.00024699,2]
[346045431,1734658232470,-151.487,0.00024699,2]
[346045432,1734658232479,-466.235,0.00024699,2]
[346045433,1734658232488,-2019.008,0.00024699,2]
[346045434,1734658232498,-1105.173,0.00024699,2]
[346045435,1734658232508,-636.099,0.00024699,2]
[346045436,1734658232517,-200.0,0.000247,2]
[346045437,1734658232526,-153.86425465,0.00024767,2]
[346045438,1734658232535,-178.644444,0.000248,2]
[346045439,1734658232544,-200.0,0.00024838,14]
[346045440,1734658232553,-502.17882628,0.00024846,14]
[346045441,1734658232563,-502.17882628,0.00024852,14]
[346045442,1734658232573,-502.17882628,0.00024862,14]
[346045443,1734658232582,-502.17882628,0.00024866,14]
[346045444,1734658232591,-200.0,0.00024885,14]
[346045445,1734658232601,-502.17882628,0.0002489,14]
[346045446,1734658232610,-502.17882628,0.00024892,14]
[346045447,1734658232620,-5379.0919,0.00024899,2]
[346045448,1734658232630,-680.7255,0.00024899,2]
[346045449,1734658232640,-500.0,0.00024899,2]
[346045450,1734658232650,-500.0,0.00024899,2]
[346045451,1734658232659,-500.0,0.00024899,2]
[346045452,1734658232669,-500.0,0.00024899,2]
[346045453,1734658232679,-500.0,0.00024899,2]
[346045454,1734658232688,-500.0,0.00024899,2]
[346045455,1734658232697,-500.0,0.00024899,2]
[346045456,1734658232707,-500.0,0.00024899,2]
[346045457,1734658232718,-500.0,0.00024899,2]
[346045458,1734658232727,-500.0,0.00024899,2]
[346045459,1734658232737,-500.0,0.00024899,2]
[346045460,1734658232748,-500.0,0.00024899,2]
[346045461,1734658232759,-500.0,0.00024899,2]
[346045462,1734658232768,-500.0,0.00024899,2]
[346045463,1734658232777,-500.0,0.00024899,2]
[346045464,1734658232787,-1500.0,0.000249,2]
[346045465,1734658232798,-152.89,0.000249,31]
[346045466,1734658232808,-152.89,0.000249,31]
[346045467,1734658232818,-152.89,0.000249,31]
[346045468,1734658232828,-152.89,0.000249,31]
[346045469,1734658232838,-152.89,0.000249,31]
[346045470,1734658232846,-152.89,0.000249,31]
[346045471,1734658232855,-152.89,0.000249,31]
[346045472,1734658232864,-152.89,0.000249,31]
[346045473,1734658232876,-152.89,0.000249,31]
[346045474,1734658232886,-152.89,0.000249,31]
[346045475,1734658232895,-152.89,0.000249,31]
[346045476,1734658232905,-152.89,0.000249,31]
[346045477,1734658232915,-152.89,0.000249,31]
[346045478,1734658232925,-152.89,0.000249,31]
[346045479,1734658232938,-15765.59893484,0.000249,3]
[346045480,1734658232948,-4263.57,0.000249,2]
[346045481,1734658232959,-11705.59228503,0.000249,2]
[346045482,1734658232967,-181.4,0.00024922,2]
[346045483,1734658232978,-150.0,0.00024928,2]
[346045484,1734658232987,-1056.0,0.0002496,2]
[346045485,1734658232996,-500.0,0.00024973,2]
[346045486,1734658233008,-532.48732459,0.0002499,2]
[346045487,1734658233017,-532.48732459,0.0002499,2]
[346045488,1734658233026,-532.48732459,0.0002499,2]
[346045489,1734658233036,-2500.28,0.00024997,4]
[346045490,1734658233046,-6977.91771758,0.00024998,3]
[346045491,1734658233055,-2500.28,0.00024998,4]
[346045492,1734658233065,-500.0,0.00024998,4]
[346045493,1734658233074,-500.0,0.00024998,4]
[346045494,1734658233084,-500.0,0.00024998,4]
[346045495,1734658233094,-500.0,0.00024998,4]
[346045496,1734658233103,-500.0,0.00024998,4]
[346045497,1734658233112,-750.26,0.00024998,4]
[346045498,1734658233121,-500.0,0.00024998,4]
[346045499,1734658233131,-500.0,0.00024998,4]
[346045500,1734658233140,-500.0,0.00024998,4]
[346045501,1734658233149,-500.0,0.00024998,4]
[346045502,1734658233159,-500.0,0.00024998,4]
[346045503,1734658233168,-1067.07,0.00024998,4]
[346045504,1734658233177,-500.0,0.00024998,4]
[346045505,1734658233186,-500.0,0.00024998,4]
[346045506,1734658233195,-500.0,0.00024998,4]
[346045507,1734658233204,-500.0,0.00024998,4]
[346045508,1734658233213,-500.0,0.00024998,4]
[346045509,1734658233223,-500.0,0.00024998,4]
[346045510,1734658233233,-500.0,0.00024998,4]
[346045511,1734658233242,-500.0,0.00024998,4]
[346045512,1734658233251,-203.85862428,0.00024998,4]
[346045513,1734658233271,-296.14137572,0.00024998,4]
[346045514,1734658233280,-307.16696284,0.00024998,4]
[346045515,1734658233289,-559.32714455,0.00024998,4]
[346045516,1734658233298,-500.0,0.00024999,2]
[346045517,1734658233308,-321.68524715,0.00024999,2]
[346045518,1734658233317,-500.0,0.00024999,2]
[346045519,1734658233326,-500.0,0.00024999,2]
[346045520,1734658233335,-63.55476561,0.00024999,2]
[346045521,1734658233346,-436.44523439,0.00024999,2]
[346045522,1734658233355,-607.03974105,0.00024999,2]
[346045523,1734658233364,-25.52331551,0.00024999,2]
[346045526,1734658237896,-150.647,0.00024699,2]
[346045527,1734658237905,-603.81299964,0.000248,2]
[346045528,1734658237915,-226.27,0.00024899,2]
[346045529,1734658237925,-270.83076017,0.00024899,2]
[346045530,1734658237937,-474.47668449,0.00024999,2]
[346045531,1734658237946,-500.0,0.00024999,2]
[346045532,1734658237955,-500.0,0.00024999,4]
[346045533,1734658237964,-500.0,0.00024999,4]
[346045534,1734658237974,-500.0,0.00024999,2]
[346045535,1734658237983,-2500.28,0.00024999,4]
[346045536,1734658237991,-2500.28,0.00024999,4]
[346045537,1734658238000,-2500.28,0.00024999,4]
[346045538,1734658238010,-2500.28,0.00024999,4]
[346045539,1734658238019,-2500.28,0.00024999,4]
[346045540,1734658238028,-2500.28,0.00024999,4]
[346045541,1734658238037,-2500.28,0.00024999,4]
[346045542,1734658238046,-2500.28,0.00024999,4]
[346045543,1734658238055,-2500.28,0.00024999,4]
[346045544,1734658238063,-2500.28,0.00024999,4]
[346045545,1734658238072,-2500.28,0.00024999,4]
[346045546,1734658238081,-2500.28,0.00024999,4]
[346045547,1734658238091,-2500.28,0.00024999,4]
[346045548,1734658238100,-2500.28,0.00024999,4]
[346045549,1734658238110,-2500.28,0.00024999,4]
[346045550,1734658238118,-2500.28,0.00024999,4]
[346045551,1734658238127,-2500.28,0.00024999,4]
[346045552,1734658238136,-2500.28,0.00024999,4]
[346045553,1734658238145,-2500.28,0.00024999,4]
[346045554,1734658238154,-2500.28,0.00024999,4]
[346045555,1734658238163,-2500.28,0.00024999,4]
[346045556,1734658238171,-2500.37991383,0.00024999,4]
[346045557,1734658238181,-500.0,0.00024999,4]
[346045558,1734658238190,-500.0,0.00024999,4]
[346045559,1734658238199,-500.0,0.00024999,4]
[346045560,1734658238209,-500.0,0.00024999,4]
[346045561,1734658238219,-500.0,0.00024999,4]
[346045562,1734658238227,-559.9,0.00024999,4]
[346045563,1734658238237,-500.0,0.00024999,4]
[346045564,1734658238247,-500.0,0.00024999,4]
[346045565,1734658238256,-435.55,0.00024999,4]
[346045566,1734658238265,-500.0,0.00024999,4]
[346045567,1734658238275,-500.0,0.00024999,4]
[346045568,1734658238286,-500.0,0.00024999,4]
[346045569,1734658238296,-172.58778221,0.00024999,4]
[346045570,1734658238305,-450.15,0.00024999,4]
[346045571,1734658238314,-500.0,0.00024999,4]
[346045572,1734658238324,-632.29452583,0.00024999,4]
[346045573,1734658238333,-500.0,0.00024999,4]
[346045574,1734658238343,-500.0,0.00024999,4]
[346045575,1734658238351,-500.0,0.00024999,4]
[346045576,1734658238360,-500.0,0.00024999,4]
[346045577,1734658238369,-500.0,0.00024999,4]
[346045578,1734658238378,-500.0,0.00024999,4]
[346045580,1734658238387,-500.0,0.00024999,4]
[346045582,1734658238396,-346.53418394,0.00024999,4]
[346045583,1734658238405,-500.0,0.00024999,4]
[346045584,1734658238415,-500.0,0.00024999,4]
[346045585,1734658238424,-500.0,0.00024999,4]
[346045586,1734658238436,-500.0,0.00024999,4]
[346045587,1734658238445,-284.05,0.00024999,4]
[346045588,1734658238454,-500.0,0.00024999,4]
[346045589,1734658238463,-500.0,0.00024999,4]
[346045590,1734658238472,-500.0,0.00024999,4]
[346045591,1734658238481,-500.0,0.00024999,4]
[346045592,1734658238490,-500.0,0.00024999,4]
[346045593,1734658238499,-500.0,0.00024999,4]
[346045594,1734658238508,-500.0,0.00024999,4]
[346045595,1734658238517,-500.0,0.00024999,4]
[346045596,1734658238526,-500.0,0.00024999,4]
[346045597,1734658238536,-500.0,0.00024999,4]
[346045598,1734658238545,-500.0,0.00024999,4]
[346045599,1734658238555,-500.0,0.00024999,4]
[346045600,1734658238565,-500.0,0.00024999,4]
[346045601,1734658238574,-500.0,0.00024999,4]
[346045602,1734658238583,-500.0,0.00024999,4]
[346045603,1734658238592,-500.0,0.00024999,4]
[346045604,1734658238601,-500.0,0.00024999,4]
[346045605,1734658238610,-500.0,0.00024999,4]